[Event "Titled Tuesday Blitz April 18 Early 2023"]
[White "Caruana, Fabiano"]
[Black "Bharath Subramaniyam H"]
[WhiteFideId "2020009"]
[BlackFideId "46634827"]
[WhiteElo "2837"]
[BlackElo "2395"]
[Result "0-1"]
[Round "08"]
[TimeControl "180+2"]
[Date "2023.04.18"]
[WhiteClock "0:00:15"]
[BlackClock "0:00:14"]

1. c4 {[%clk 0:03:00]}  e5 {[%clk 0:02:57]} 2. Nc3 {[%clk 0:03:01]}  Nc6 {[%clk 0:02:57]} 3. Nf3 {[%clk 0:03:00]}  f5 {[%clk 0:02:56]} 4. d4 {[%clk 0:02:59]}  e4 {[%clk 0:02:56]} 5. Ng1 {[%clk 0:02:58]}  Nf6 {[%clk 0:02:55]} 6. Nh3 {[%clk 0:02:57]}  Bb4 {[%clk 0:02:53]} 7. Bg5 {[%clk 0:02:50]}  O-O {[%clk 0:02:44]} 8. e3 {[%clk 0:02:49]}  h6 {[%clk 0:02:42]} 9. Bxf6 {[%clk 0:02:49]}  Qxf6 {[%clk 0:02:43]} 10. Nf4 {[%clk 0:02:49]}  Bxc3+ {[%clk 0:02:39]} 11. bxc3 {[%clk 0:02:50]}  d6 {[%clk 0:02:39]} 12. h4 {[%clk 0:02:43]}  Ne7 {[%clk 0:02:37]} 13. h5 {[%clk 0:02:41]}  Kh7 {[%clk 0:02:34]} 14. a4 {[%clk 0:02:34]}  Be6 {[%clk 0:02:31]} 15. a5 {[%clk 0:02:33]}  Bf7 {[%clk 0:02:31]} 16. Be2 {[%clk 0:02:31]}  c5 {[%clk 0:02:21]} 17. g3 {[%clk 0:02:29]}  Rac8 {[%clk 0:02:21]} 18. Qb3 {[%clk 0:02:27]}  Rc7 {[%clk 0:02:18]} 19. O-O {[%clk 0:02:27]}  Rfc8 {[%clk 0:02:15]} 20. Rfb1 {[%clk 0:02:24]}  Nc6 {[%clk 0:02:08]} 21. Qd1 {[%clk 0:02:17]}  Nd8 {[%clk 0:02:04]} 22. Ra4 {[%clk 0:01:29]}  cxd4 {[%clk 0:01:32]} 23. cxd4 {[%clk 0:01:29]}  Bxc4 {[%clk 0:01:31]} 24. Bxc4 {[%clk 0:01:30]}  Rxc4 {[%clk 0:01:32]} 25. Rxc4 {[%clk 0:01:31]}  Rxc4 {[%clk 0:01:32]} 26. Qb3 {[%clk 0:01:32]}  Qf7 {[%clk 0:01:30]} 27. Kg2 {[%clk 0:01:29]}  Rc7 {[%clk 0:01:19]} 28. Qxf7 {[%clk 0:01:24]}  Nxf7 {[%clk 0:00:48]} 29. Rb5 {[%clk 0:01:23]}  Ng5 {[%clk 0:00:32]} 30. Rxf5 {[%clk 0:01:22]}  Rf7 {[%clk 0:00:28]} 31. Rd5 {[%clk 0:01:15]}  Rd7 {[%clk 0:00:28]} 32. a6 {[%clk 0:00:53]}  bxa6 {[%clk 0:00:19]} 33. Ra5 {[%clk 0:00:52]}  Kg8 {[%clk 0:00:20]} 34. Rxa6 {[%clk 0:00:52]}  Kf7 {[%clk 0:00:20]} 35. Ra5 {[%clk 0:00:48]}  Ne6 {[%clk 0:00:18]} 36. Nd5 {[%clk 0:00:35]}  Ng5 {[%clk 0:00:17]} 37. g4 {[%clk 0:00:33]}  Rb7 {[%clk 0:00:15]} 38. Kg3 {[%clk 0:00:33]}  Ke6 {[%clk 0:00:15]} 39. Nc3 {[%clk 0:00:24]}  Kd7 {[%clk 0:00:14]} 40. Kf4 {[%clk 0:00:22]}  Kc6 {[%clk 0:00:13]} 41. Nxe4 {[%clk 0:00:19]}  Rf7+ {[%clk 0:00:11]} 42. Kg3 {[%clk 0:00:19]}  Nxe4+ {[%clk 0:00:11]} 43. Kh4 {[%clk 0:00:20]}  Rxf2 {[%clk 0:00:11]} 44. g5 {[%clk 0:00:18]}  hxg5+ {[%clk 0:00:11]} 45. Kg4 {[%clk 0:00:19]}  Kb6 {[%clk 0:00:09]} 46. Ra4 {[%clk 0:00:18]}  d5 {[%clk 0:00:09]} 47. Ra1 {[%clk 0:00:17]}  Rg2+ {[%clk 0:00:09]} 48. Kf5 {[%clk 0:00:17]}  Rh2 {[%clk 0:00:10]} 49. Kg6 {[%clk 0:00:17]}  g4 {[%clk 0:00:09]} 50. Rb1+ {[%clk 0:00:16]}  Kc6 {[%clk 0:00:09]} 51. Rc1+ {[%clk 0:00:16]}  Kd6 {[%clk 0:00:09]} 52. Ra1 {[%clk 0:00:16]}  g3 {[%clk 0:00:09]} 53. Ra6+ {[%clk 0:00:16]}  Kc7 {[%clk 0:00:10]} 54. Rxa7+ {[%clk 0:00:17]}  Kb6 {[%clk 0:00:10]} 55. Ra1 {[%clk 0:00:13]}  g2 {[%clk 0:00:11]} 56. Rg1 {[%clk 0:00:14]}  Nd2 {[%clk 0:00:12]} 57. Kxg7 {[%clk 0:00:12]}  Nf3 {[%clk 0:00:12]} 58. Rxg2 {[%clk 0:00:13]}  Rxg2+ {[%clk 0:00:12]} 59. Kf6 {[%clk 0:00:13]}  Rh2 {[%clk 0:00:13]} 60. Kg6 {[%clk 0:00:14]}  Kb5 {[%clk 0:00:13]} 61. h6 {[%clk 0:00:14]}  Kc4 {[%clk 0:00:14]} 62. h7 {[%clk 0:00:15]}  Kd3 {[%clk 0:00:14]} 0-1


[Site "https://www.chess.com"]

[Event "Titled Tuesday Blitz April 18 Early 2023"]
[White "Kukhmazov, Arsen"]
[Black "Bluebaum, Matthias"]
[WhiteFideId "24108260"]
[BlackFideId "24651516"]
[WhiteElo "2396"]
[BlackElo "2638"]
[Result "0-1"]
[Round "08"]
[TimeControl "180+2"]
[Date "2023.04.18"]
[WhiteClock "0:00:17"]
[BlackClock "0:00:33"]

1. d4 {[%clk 0:02:59]}  d5 {[%clk 0:03:00]} 2. c4 {[%clk 0:02:59]}  e6 {[%clk 0:03:00]} 3. Nf3 {[%clk 0:02:51]}  Nf6 {[%clk 0:03:00]} 4. e3 {[%clk 0:02:52]}  a6 {[%clk 0:03:00]} 5. b3 {[%clk 0:02:52]}  c5 {[%clk 0:03:01]} 6. Bb2 {[%clk 0:02:51]}  cxd4 {[%clk 0:03:01]} 7. exd4 {[%clk 0:02:51]}  Bb4+ {[%clk 0:03:02]} 8. Nbd2 {[%clk 0:02:51]}  O-O {[%clk 0:03:02]} 9. Bd3 {[%clk 0:02:51]}  dxc4 {[%clk 0:03:02]} 10. bxc4 {[%clk 0:02:51]}  b5 {[%clk 0:03:03]} 11. cxb5 {[%clk 0:02:41]}  axb5 {[%clk 0:03:04]} 12. Bxb5 {[%clk 0:02:41]}  Bb7 {[%clk 0:03:03]} 13. Be2 {[%clk 0:02:33]}  Qd5 {[%clk 0:02:47]} 14. a3 {[%clk 0:02:33]}  Ba5 {[%clk 0:02:33]} 15. O-O {[%clk 0:02:32]}  Rc8 {[%clk 0:02:17]} 16. Rc1 {[%clk 0:02:28]}  Rxc1 {[%clk 0:01:50]} 17. Qxc1 {[%clk 0:02:29]}  Nbd7 {[%clk 0:01:50]} 18. Qc4 {[%clk 0:02:12]}  Qd6 {[%clk 0:01:47]} 19. Nb3 {[%clk 0:01:40]}  Bd5 {[%clk 0:01:31]} 20. Qd3 {[%clk 0:01:41]}  Qb6 {[%clk 0:01:20]} 21. Nxa5 {[%clk 0:01:19]}  Qxb2 {[%clk 0:01:20]} 22. Nc4 {[%clk 0:01:19]}  Qa2 {[%clk 0:01:20]} 23. Rc1 {[%clk 0:01:10]}  Rc8 {[%clk 0:01:08]} 24. Nfd2 {[%clk 0:01:03]}  Nb6 {[%clk 0:01:01]} 25. h3 {[%clk 0:00:57]}  h6 {[%clk 0:01:01]} 26. Rc2 {[%clk 0:00:52]}  Qa1+ {[%clk 0:01:01]} 27. Kh2 {[%clk 0:00:52]}  Nxc4 {[%clk 0:00:41]} 28. Nxc4 {[%clk 0:00:52]}  Qe1 {[%clk 0:00:42]} 29. Qe3 {[%clk 0:00:43]}  Qb1 {[%clk 0:00:37]} 30. Rb2 {[%clk 0:00:29]}  Qa1 {[%clk 0:00:34]} 31. Nd6 {[%clk 0:00:17]}  Qxb2 {[%clk 0:00:33]} 32. Nxc8 {[%clk 0:00:17]}  Qb8+ {[%clk 0:00:33]} 0-1


[Site "https://www.chess.com"]

[Event "Titled Tuesday Blitz April 18 Early 2023"]
[White "Sarana, Alexey"]
[Black "Aydincelebi, Kagan"]
[WhiteFideId "24133795"]
[BlackFideId "6361102"]
[WhiteElo "2714"]
[BlackElo "2180"]
[Result "1-0"]
[Round "08"]
[TimeControl "180+2"]
[Date "2023.04.18"]
[WhiteClock "0:00:43"]
[BlackClock "0:00:20"]

1. d4 {[%clk 0:02:58]}  Nf6 {[%clk 0:02:59]} 2. c4 {[%clk 0:02:57]}  e6 {[%clk 0:02:59]} 3. Nf3 {[%clk 0:02:57]}  c5 {[%clk 0:03:00]} 4. d5 {[%clk 0:02:57]}  exd5 {[%clk 0:03:01]} 5. cxd5 {[%clk 0:02:58]}  d6 {[%clk 0:03:02]} 6. Nc3 {[%clk 0:02:58]}  g6 {[%clk 0:03:02]} 7. e4 {[%clk 0:02:58]}  a6 {[%clk 0:03:02]} 8. Be2 {[%clk 0:02:55]}  Bg4 {[%clk 0:03:01]} 9. O-O {[%clk 0:02:51]}  Bg7 {[%clk 0:03:01]} 10. a4 {[%clk 0:02:48]}  O-O {[%clk 0:03:01]} 11. Be3 {[%clk 0:02:47]}  Re8 {[%clk 0:02:59]} 12. Nd2 {[%clk 0:02:48]}  Bxe2 {[%clk 0:02:59]} 13. Qxe2 {[%clk 0:02:48]}  Nbd7 {[%clk 0:03:00]} 14. Bf4 {[%clk 0:02:47]}  Qe7 {[%clk 0:02:59]} 15. Rae1 {[%clk 0:02:40]}  Nh5 {[%clk 0:02:55]} 16. Be3 {[%clk 0:02:36]}  f5 {[%clk 0:02:48]} 17. exf5 {[%clk 0:02:33]}  Qh4 {[%clk 0:02:44]} 18. fxg6 {[%clk 0:02:29]}  hxg6 {[%clk 0:02:44]} 19. Qc4 {[%clk 0:02:24]}  Qe7 {[%clk 0:02:35]} 20. Nf3 {[%clk 0:02:24]}  Ne5 {[%clk 0:02:27]} 21. Nxe5 {[%clk 0:02:23]}  Qxe5 {[%clk 0:02:26]} 22. g3 {[%clk 0:02:17]}  Nf6 {[%clk 0:02:19]} 23. Re2 {[%clk 0:02:17]}  Qf5 {[%clk 0:02:08]} 24. Rfe1 {[%clk 0:02:10]}  Ng4 {[%clk 0:01:58]} 25. Bf4 {[%clk 0:02:09]}  Ne5 {[%clk 0:01:52]} 26. Bxe5 {[%clk 0:02:02]}  Rxe5 {[%clk 0:01:52]} 27. Ne4 {[%clk 0:01:57]}  Qh3 {[%clk 0:01:17]} 28. f4 {[%clk 0:01:06]}  Rh5 {[%clk 0:00:42]} 29. Ng5 {[%clk 0:01:03]}  Qg4 {[%clk 0:00:38]} 30. Qd3 {[%clk 0:00:59]}  Bd4+ {[%clk 0:00:38]} 31. Kh1 {[%clk 0:00:59]}  Rh6 {[%clk 0:00:33]} 32. Re6 {[%clk 0:00:46]}  Qxg3 {[%clk 0:00:20]} 33. Qxg3 {[%clk 0:00:43]} 1-0


[Site "https://www.chess.com"]

[Event "Titled Tuesday Blitz April 18 Early 2023"]
[White "Szpar, Milosz"]
[Black "Bortnyk, Olexandr"]
[WhiteFideId "1184989"]
[BlackFideId "14120828"]
[WhiteElo "2436"]
[BlackElo "2734"]
[Result "1-0"]
[Round "08"]
[TimeControl "180+2"]
[Date "2023.04.18"]
[WhiteClock "0:00:15"]
[BlackClock "0:00:23"]

1. e4 {[%clk 0:02:53]}  Nf6 {[%clk 0:02:57]} 2. e5 {[%clk 0:02:53]}  Nd5 {[%clk 0:02:57]} 3. d4 {[%clk 0:02:53]}  d6 {[%clk 0:02:57]} 4. Nf3 {[%clk 0:02:53]}  dxe5 {[%clk 0:02:58]} 5. Nxe5 {[%clk 0:02:53]}  c6 {[%clk 0:02:57]} 6. Bc4 {[%clk 0:02:48]}  Nd7 {[%clk 0:02:56]} 7. Nf3 {[%clk 0:02:49]}  N7f6 {[%clk 0:02:55]} 8. O-O {[%clk 0:02:49]}  Bg4 {[%clk 0:02:55]} 9. c3 {[%clk 0:02:48]}  e6 {[%clk 0:02:56]} 10. h3 {[%clk 0:02:48]}  Bh5 {[%clk 0:02:56]} 11. Nbd2 {[%clk 0:02:47]}  Bd6 {[%clk 0:02:55]} 12. a4 {[%clk 0:02:44]}  O-O {[%clk 0:02:55]} 13. Qb3 {[%clk 0:02:41]}  Qc7 {[%clk 0:02:55]} 14. Re1 {[%clk 0:02:37]}  c5 {[%clk 0:02:52]} 15. Ne5 {[%clk 0:02:14]}  cxd4 {[%clk 0:02:39]} 16. cxd4 {[%clk 0:02:15]}  Rac8 {[%clk 0:02:38]} 17. Bf1 {[%clk 0:02:04]}  Bb4 {[%clk 0:02:26]} 18. Nd3 {[%clk 0:01:46]}  Ba5 {[%clk 0:02:21]} 19. Qa3 {[%clk 0:01:40]}  Bb6 {[%clk 0:02:07]} 20. Nb3 {[%clk 0:01:35]}  a5 {[%clk 0:01:50]} 21. Bd2 {[%clk 0:01:33]}  Qd8 {[%clk 0:01:32]} 22. Ndc5 {[%clk 0:01:26]}  Rb8 {[%clk 0:01:26]} 23. Rac1 {[%clk 0:01:25]}  Bc7 {[%clk 0:01:22]} 24. Nd3 {[%clk 0:01:18]}  b6 {[%clk 0:01:20]} 25. Ne5 {[%clk 0:01:15]}  Bd6 {[%clk 0:01:16]} 26. Qa1 {[%clk 0:01:07]}  Bxe5 {[%clk 0:01:10]} 27. dxe5 {[%clk 0:01:05]}  Nd7 {[%clk 0:01:10]} 28. Nd4 {[%clk 0:01:04]}  Rc8 {[%clk 0:00:59]} 29. Nc6 {[%clk 0:01:04]}  Qh4 {[%clk 0:00:58]} 30. g3 {[%clk 0:01:01]}  Rxc6 {[%clk 0:00:40]} 31. gxh4 {[%clk 0:00:59]}  Nc5 {[%clk 0:00:41]} 32. Qa2 {[%clk 0:00:54]}  Rfc8 {[%clk 0:00:38]} 33. Bg2 {[%clk 0:00:53]}  R6c7 {[%clk 0:00:32]} 34. Bxd5 {[%clk 0:00:45]}  exd5 {[%clk 0:00:33]} 35. Qxd5 {[%clk 0:00:41]}  Bg6 {[%clk 0:00:30]} 36. b4 {[%clk 0:00:38]}  axb4 {[%clk 0:00:28]} 37. Bxb4 {[%clk 0:00:38]}  Bf5 {[%clk 0:00:25]} 38. Bxc5 {[%clk 0:00:38]}  bxc5 {[%clk 0:00:26]} 39. e6 {[%clk 0:00:33]}  fxe6 {[%clk 0:00:23]} 40. Rxe6 {[%clk 0:00:34]}  Bxe6 {[%clk 0:00:24]} 41. Qxe6+ {[%clk 0:00:34]}  Kh8 {[%clk 0:00:24]} 42. Qc4 {[%clk 0:00:25]}  h6 {[%clk 0:00:24]} 43. a5 {[%clk 0:00:25]}  Ra8 {[%clk 0:00:24]} 44. a6 {[%clk 0:00:25]}  Rc6 {[%clk 0:00:25]} 45. Ra1 {[%clk 0:00:25]}  Ra7 {[%clk 0:00:24]} 46. Qb5 {[%clk 0:00:23]}  Rcc7 {[%clk 0:00:20]} 47. Qb8+ {[%clk 0:00:22]}  Kh7 {[%clk 0:00:20]} 48. Qxc7 {[%clk 0:00:22]}  Rxc7 {[%clk 0:00:18]} 49. a7 {[%clk 0:00:23]}  Rxa7 {[%clk 0:00:18]} 50. Rxa7 {[%clk 0:00:23]}  Kg6 {[%clk 0:00:19]} 51. Rc7 {[%clk 0:00:23]}  Kh5 {[%clk 0:00:20]} 52. Rxg7 {[%clk 0:00:20]}  Kxh4 {[%clk 0:00:21]} 53. Rg3 {[%clk 0:00:16]}  c4 {[%clk 0:00:21]} 54. Rc3 {[%clk 0:00:15]}  Kg5 {[%clk 0:00:21]} 55. Kg2 {[%clk 0:00:15]}  Kh5 {[%clk 0:00:21]} 56. Kg3 {[%clk 0:00:15]}  Kg5 {[%clk 0:00:22]} 57. Rxc4 {[%clk 0:00:16]}  Kh5 {[%clk 0:00:22]} 58. Rc5+ {[%clk 0:00:15]}  Kg6 {[%clk 0:00:23]} 59. h4 {[%clk 0:00:15]} 1-0


[Site "https://www.chess.com"]

[Event "Titled Tuesday Blitz April 18 Early 2023"]
[White "Kramnik, Vladimir"]
[Black "Hambleton, Aman"]
[WhiteFideId "4101588"]
[BlackFideId "2606577"]
[WhiteElo "2712"]
[BlackElo "2511"]
[Result "1-0"]
[Round "08"]
[TimeControl "180+2"]
[Date "2023.04.18"]
[WhiteClock "0:00:48"]
[BlackClock "0:00:01"]

1. e4 {[%clk 0:03:00]}  b6 {[%clk 0:02:54]} 2. d4 {[%clk 0:02:59]}  Bb7 {[%clk 0:02:53]} 3. Bd3 {[%clk 0:02:57]}  e6 {[%clk 0:02:53]} 4. Nf3 {[%clk 0:02:57]}  d5 {[%clk 0:02:52]} 5. e5 {[%clk 0:02:54]}  Ba6 {[%clk 0:02:51]} 6. Bxa6 {[%clk 0:02:52]}  Nxa6 {[%clk 0:02:52]} 7. Qe2 {[%clk 0:02:51]}  Nb8 {[%clk 0:02:49]} 8. O-O {[%clk 0:02:51]}  Ne7 {[%clk 0:02:47]} 9. a4 {[%clk 0:02:46]}  c5 {[%clk 0:01:49]} 10. Rd1 {[%clk 0:02:42]}  c4 {[%clk 0:01:30]} 11. Nc3 {[%clk 0:02:34]}  Nbc6 {[%clk 0:01:27]} 12. Bg5 {[%clk 0:02:26]}  Qd7 {[%clk 0:01:16]} 13. Nb5 {[%clk 0:02:18]}  Ng6 {[%clk 0:00:59]} 14. h4 {[%clk 0:02:16]}  a6 {[%clk 0:00:56]} 15. h5 {[%clk 0:01:58]}  axb5 {[%clk 0:00:35]} 16. axb5 {[%clk 0:01:58]}  Na5 {[%clk 0:00:35]} 17. hxg6 {[%clk 0:01:56]}  fxg6 {[%clk 0:00:35]} 18. Bd2 {[%clk 0:01:53]}  Be7 {[%clk 0:00:27]} 19. b4 {[%clk 0:01:39]}  cxb3 {[%clk 0:00:24]} 20. cxb3 {[%clk 0:01:35]}  O-O {[%clk 0:00:23]} 21. Bxa5 {[%clk 0:01:34]}  bxa5 {[%clk 0:00:13]} 22. Rdc1 {[%clk 0:01:34]}  Rfb8 {[%clk 0:00:13]} 23. Rc6 {[%clk 0:01:33]}  Ra7 {[%clk 0:00:07]} 24. Qc2 {[%clk 0:01:13]}  Bb4 {[%clk 0:00:02]} 25. Ng5 {[%clk 0:01:11]}  Re8 {[%clk 0:00:02]} 26. Rc1 {[%clk 0:00:59]}  h6 {[%clk 0:00:02]} 27. b6 {[%clk 0:00:55]}  Rb7 {[%clk 0:00:02]} 28. Rc7 {[%clk 0:00:52]}  Rxc7 {[%clk 0:00:02]} 29. Qxc7 {[%clk 0:00:48]}  Qxc7 {[%clk 0:00:01]} 30. bxc7 {[%clk 0:00:48]} 1-0


[Site "https://www.chess.com"]

[Event "Titled Tuesday Blitz April 18 Early 2023"]
[White "Ivanchuk, Vasyl"]
[Black "Harsh Suresh"]
[WhiteFideId "14100010"]
[BlackFideId "45018464"]
[WhiteElo "2710"]
[BlackElo "2227"]
[Result "1-0"]
[Round "08"]
[TimeControl "180+2"]
[Date "2023.04.18"]
[WhiteClock "0:00:48"]
[BlackClock "0:00:05"]

1. c4 {[%clk 0:02:59]}  g6 {[%clk 0:02:59]} 2. d4 {[%clk 0:02:58]}  Bg7 {[%clk 0:02:59]} 3. Nc3 {[%clk 0:02:58]}  d6 {[%clk 0:03:00]} 4. e4 {[%clk 0:02:58]}  Nd7 {[%clk 0:03:00]} 5. Be3 {[%clk 0:02:54]}  e5 {[%clk 0:02:58]} 6. Nge2 {[%clk 0:02:53]}  Ne7 {[%clk 0:02:58]} 7. Qd2 {[%clk 0:02:53]}  b6 {[%clk 0:02:55]} 8. O-O-O {[%clk 0:02:49]}  Bb7 {[%clk 0:02:55]} 9. f3 {[%clk 0:02:49]}  c6 {[%clk 0:02:49]} 10. h4 {[%clk 0:02:44]}  h5 {[%clk 0:02:48]} 11. d5 {[%clk 0:02:43]}  cxd5 {[%clk 0:02:45]} 12. cxd5 {[%clk 0:02:42]}  a6 {[%clk 0:02:40]} 13. Kb1 {[%clk 0:02:39]}  b5 {[%clk 0:02:41]} 14. Nc1 {[%clk 0:02:36]}  Ng8 {[%clk 0:02:08]} 15. g4 {[%clk 0:02:15]}  Bh6 {[%clk 0:02:01]} 16. g5 {[%clk 0:02:14]}  Bg7 {[%clk 0:02:02]} 17. Nb3 {[%clk 0:02:14]}  Ne7 {[%clk 0:02:01]} 18. a3 {[%clk 0:02:06]}  O-O {[%clk 0:02:01]} 19. Na2 {[%clk 0:02:06]}  Qb8 {[%clk 0:01:49]} 20. Na5 {[%clk 0:02:01]}  Rc8 {[%clk 0:01:44]} 21. Bh3 {[%clk 0:01:58]}  Rc7 {[%clk 0:01:44]} 22. Nb4 {[%clk 0:01:56]}  Bc8 {[%clk 0:01:42]} 23. Nac6 {[%clk 0:01:53]}  Nxc6 {[%clk 0:01:37]} 24. dxc6 {[%clk 0:01:53]}  Nb6 {[%clk 0:01:25]} 25. Bxb6 {[%clk 0:01:48]}  Qxb6 {[%clk 0:01:26]} 26. Nd5 {[%clk 0:01:48]}  Qxc6 {[%clk 0:01:25]} 27. Nxc7 {[%clk 0:01:32]}  Qxc7 {[%clk 0:01:26]} 28. Qxd6 {[%clk 0:01:32]}  Qb7 {[%clk 0:01:04]} 29. Bxc8 {[%clk 0:01:22]}  Rxc8 {[%clk 0:01:03]} 30. Rc1 {[%clk 0:01:22]}  Re8 {[%clk 0:00:56]} 31. Rc7 {[%clk 0:01:21]}  Qb8 {[%clk 0:00:55]} 32. Qd7 {[%clk 0:01:18]}  Rf8 {[%clk 0:00:54]} 33. Rhc1 {[%clk 0:01:18]}  Qb6 {[%clk 0:00:54]} 34. Rc8 {[%clk 0:01:14]}  Qf2 {[%clk 0:00:48]} 35. R1c3 {[%clk 0:01:01]}  Qxh4 {[%clk 0:00:40]} 36. Qe7 {[%clk 0:01:01]}  Qe1+ {[%clk 0:00:18]} 37. Ka2 {[%clk 0:01:00]}  Qe2 {[%clk 0:00:19]} 38. R3c7 {[%clk 0:00:49]}  Qxf3 {[%clk 0:00:08]} 39. Rxf8+ {[%clk 0:00:48]}  Bxf8 {[%clk 0:00:09]} 40. Rc8 {[%clk 0:00:49]}  Qxe4 {[%clk 0:00:04]} 41. Qxf8+ {[%clk 0:00:48]}  Kh7 {[%clk 0:00:05]} 42. Qh6# {[%clk 0:00:48]} 1-0


[Site "https://www.chess.com"]

[Event "Titled Tuesday Blitz April 18 Early 2023"]
[White "Durarbayli, Vasif"]
[Black "Manukyan, Sargis A."]
[WhiteFideId "13402935"]
[BlackFideId "13303970"]
[WhiteElo "2551"]
[BlackElo "2187"]
[Result "1-0"]
[Round "08"]
[TimeControl "180+2"]
[Date "2023.04.18"]
[WhiteClock "0:00:15"]
[BlackClock "0:00:02"]

1. e4 {[%clk 0:02:57]}  c5 {[%clk 0:02:57]} 2. Nf3 {[%clk 0:02:57]}  d6 {[%clk 0:02:57]} 3. d4 {[%clk 0:02:56]}  cxd4 {[%clk 0:02:58]} 4. Nxd4 {[%clk 0:02:57]}  Nf6 {[%clk 0:02:58]} 5. Nc3 {[%clk 0:02:57]}  g6 {[%clk 0:02:58]} 6. Be3 {[%clk 0:02:56]}  Bg7 {[%clk 0:02:59]} 7. f3 {[%clk 0:02:54]}  O-O {[%clk 0:02:59]} 8. Qd2 {[%clk 0:02:55]}  Nc6 {[%clk 0:03:00]} 9. Bc4 {[%clk 0:02:55]}  Bd7 {[%clk 0:03:00]} 10. g4 {[%clk 0:02:55]}  Rc8 {[%clk 0:03:00]} 11. Be2 {[%clk 0:02:55]}  Nxd4 {[%clk 0:02:56]} 12. Bxd4 {[%clk 0:02:53]}  b5 {[%clk 0:02:57]} 13. Nxb5 {[%clk 0:02:30]}  Rb8 {[%clk 0:02:36]} 14. Nxa7 {[%clk 0:02:15]}  Qc7 {[%clk 0:02:02]} 15. c4 {[%clk 0:02:13]}  Bxg4 {[%clk 0:01:34]} 16. Nb5 {[%clk 0:02:10]}  Qb7 {[%clk 0:01:06]} 17. Bxf6 {[%clk 0:01:33]}  Bxf6 {[%clk 0:01:04]} 18. fxg4 {[%clk 0:01:32]}  Qxe4 {[%clk 0:01:03]} 19. Rf1 {[%clk 0:01:18]}  Bh4+ {[%clk 0:00:41]} 20. Kd1 {[%clk 0:01:17]}  Rfc8 {[%clk 0:00:42]} 21. Qf4 {[%clk 0:01:03]}  Qe6 {[%clk 0:00:31]} 22. Nd4 {[%clk 0:00:58]}  Qd7 {[%clk 0:00:23]} 23. Qxf7+ {[%clk 0:00:57]}  Kh8 {[%clk 0:00:23]} 24. Ne6 {[%clk 0:00:36]}  Rg8 {[%clk 0:00:19]} 25. b3 {[%clk 0:00:34]}  d5 {[%clk 0:00:17]} 26. c5 {[%clk 0:00:34]}  d4 {[%clk 0:00:16]} 27. Bc4 {[%clk 0:00:33]}  d3 {[%clk 0:00:15]} 28. g5 {[%clk 0:00:30]}  Qc6 {[%clk 0:00:08]} 29. Qf4 {[%clk 0:00:28]}  Bxg5 {[%clk 0:00:04]} 30. Qxg5 {[%clk 0:00:28]}  Qe4 {[%clk 0:00:04]} 31. Qd2 {[%clk 0:00:17]}  Rb4 {[%clk 0:00:02]} 32. Qc3+ {[%clk 0:00:16]}  Rg7 {[%clk 0:00:02]} 33. Rf8# {[%clk 0:00:15]} 1-0


[Site "https://www.chess.com"]